[Event "15th Paleochora Open 2022"]
[Site "Paleochora"]
[Date "2022.07.22"]
[Round "7.2"]
[White "Stremavicius, Titas"]
[Black "Zakarian, David"]
[Result "1-0"]
[ECO "A14"]
[WhiteElo "2532"]
[BlackElo "2300"]
[Annotator "TA"]
[PlyCount "71"]
[EventDate "2022.07.17"]
[EventType "swiss"]
[EventCountry "GRE"]
[SourceTitle "playchess.com"]
[Source "ChessBase"]
[SourceQuality "1"]
[TimeControl "40/5400+30:900+30"]

{[%evp 12,71,3,4,8,7,19,0,16,0,7,0,0,0,6,0,0,-8,0,-2,27,-43,-46,-34,-57,-41,-39,-35,-42,-143,24,0,84,0,0,0,37,29,36,31,20,23,9,15,229,22,64,67,145,154,196,162,254,205,291,254,312,320,307,292,267,262]} 1. c4 e6 2. g3 Nf6 3. Bg2 d5 4. Nf3 Be7 5. O-O O-O 6. b3 d4 7. e3 c5 {A14: English Opening: 1...e6 with b3 by White.} 8. exd4 cxd4 9. d3 h6 {The position is equal.} 10. Re1 Nc6 11. Na3 Bb4 12. Re2 e5 13. Bb2 {[#]} Re8 $146 ({Predecessor:} 13... Bg4 14. h3 Bh5 15. Qb1 Re8 16. Nc2 e4 17. Nxb4 Nxb4 18. dxe4 d3 19. Re1 Nc2 {0-1 (35) Arnason,J (2528)-Timoshenko,G (2554) Panormo 2001}) 14. Nc2 Bd6 15. b4 a6 16. Qe1 (16. a4 $11) 16... Bg4 $15 {[%cal Oe5e4,Bc8g4,Bg4h5,Bh5g6][%mdl 32]} 17. h3 Bh5 {[%cal Oe5e4]} 18. Rd1 Nd7 19. g4 Bg6 20. a4 {[#]} (20. a3 $15) 20... Qb8 $2 (20... a5 $1 $17 {[%cal Ra5b4]} 21. b5 Nb4 22. Nxb4 Bxb4) 21. Nh4 Nf8 (21... Bh7 $11 {remains equal.}) 22. b5 (22. Ba3 $16) 22... axb5 $11 23. axb5 Ne7 (23... Na5 $5 {[%cal Ra5c4]}) 24. f4 $36 {[%cal Rf4e5][%mdl 2048] White fights for an advantage.} e4 25. Bxe4 (25. Nxg6 Nfxg6 26. Bxe4 (26. Nxd4 exd3 27. Re4 Nxf4 $17) 26... Nxf4 27. Bxd4 Nxe2+ 28. Qxe2 Ng6 $17) 25... Bxe4 26. Rxe4 ({Don't play} 26. dxe4 Neg6 27. Ng2 (27. Rxd4 $2 Nxf4 28. Re3 Bc5 $19) (27. Nxd4 Nxh4 28. Qxh4 Ng6 $17) 27... Ne6 28. Bxd4 (28. Nxd4 Ngxf4 29. Nxf4 Nxf4 $17) 28... Bxf4 $15) 26... Ra2 27. Rb1 {Threatens to win with Nf5.} Bxf4 $2 28. Nf3 $2 (28. Rxe7 $18 Rxe7 29. Qxe7) 28... Nfg6 29. Ncxd4 {And now Nf5 would win.} Bg3 {[#]} ({Black should try} 29... Bd6 $14) 30. Qc3 $1 $16 f6 31. Ne2 Be5 (31... Ra8 {is a better defense.} 32. Rf1 Bc7) 32. d4 {[%cal Bd3d4,Bd4d5][%mdl 32]} Bc7 (32... Bf4 $142) 33. b6 {White has a decisive advantage.} Bg3 {[%cal Oe7d5]} 34. c5 Kh7 (34... Nd5 $2 35. Qb3 Kh8 36. Qxd5 $18 (36. Qxa2 Rxe4 37. Bc1 Bf4 $14)) 35. Qd3 Kh8 36. d5 {Weighted Error Value: White=0.28 (precise) /Black=0.44} 1-0

[Event "15th Paleochora Open 2022"]
[Site "Paleochora"]
[Date "2022.07.22"]
[Round "7.3"]
[White "Yilmaz, Mustafa"]
[Black "Meshkovs, Nikita"]
[Result "1/2-1/2"]
[ECO "D37"]
[WhiteElo "2634"]
[BlackElo "2535"]
[Annotator "TA"]
[PlyCount "106"]
[EventDate "2022.07.17"]
[EventType "swiss"]
[EventCountry "GRE"]
[SourceTitle "playchess.com"]
[Source "ChessBase"]
[SourceQuality "1"]
[TimeControl "40/5400+30:900+30"]

{[%evp 9,106,31,29,27,33,20,35,21,26,19,24,17,33,33,34,29,35,35,29,33,35,31,31,43,39,41,37,38,40,43,42,50,56,43,62,40,85,91,88,72,78,81,90,79,90,96,95,90,102,94,96,88,91,90,77,97,93,85,138,91,101,101,85,85,82,83,82,83,81,62,79,77,81,36,46,5,13,0,0,0,0,0,0,0,0,0,0,-23,-3,-166,-157,-128,-28,-87,-90,-81,0,-88,0]} 1. d4 Nf6 2. c4 e6 3. Nf3 a6 4. Nc3 d5 5. cxd5 exd5 6. Bg5 {D37: Queen's Gambit Declined: 5 Bf4.} Be6 7. e3 Nbd7 8. h3 {White is slightly better.} Bd6 9. Bd3 c6 10. Bf4 Qc7 11. Bxd6 Qxd6 12. O-O O-O {[#]} 13. Re1 $5 $146 {[%mdl 8] New and interesting.} ({Predecessor:} 13. Qc2 h6 14. a3 a5 15. Rac1 Rfe8 16. Rfd1 Qe7 17. Re1 Rec8 18. Ne2 c5 19. dxc5 Nxc5 {½-½ (42) Giri,A (2761)-Tari,A (2654) chess24.com INT 2022}) 13... h6 14. Rc1 Rac8 15. Qc2 c5 16. dxc5 Rxc5 17. Qa4 Rfc8 18. Qd4 Qc7 19. Rcd1 Rc6 20. Ne2 Qb6 21. Nf4 R6c7 22. Bb1 Rc4 23. Qxb6 Nxb6 24. Nd4 Bd7 25. f3 R4c7 26. b3 {Prevents Na4.} g6 27. Kf2 Kg7 28. g4 Ng8 29. h4 {[%cal Bh3h4,Bh4h5][%mdl 32] 0x0.0019e9eb20c3dp-1022s more active pieces.} Ne7 30. h5 {[#] Strongly threatening hxg6.} g5 31. Nfe2 {[%cal Bf4e2,Be2g3,Bg3f5][%mdl 32]} Rd8 32. Ng3 Nbc8 33. e4 dxe4 (33... Nd6 $142) 34. Ndf5+ ({Resist} 34. Nxe4 Nd5 $14) (34. Bxe4 $142 Re8 35. Bf5) 34... Nxf5 $16 35. Nxf5+ Kf6 36. Ne3 {Threatens to win with Nd5+.} ({Much weaker is} 36. Nxh6 $6 Rh8 $11) 36... Kg7 37. Bxe4 {Hoping for Bf5.} Re8 38. Bf5 Be6 39. Bxe6 fxe6 40. Rc1 (40. Nc4 {looks sharper.} Kf6 41. Re2 Na7 42. Kg3) 40... Ree7 41. Nc4 Kf6 42. Red1 Red7 43. Ke3 Rxd1 44. Rxd1 $11 {[%mdl 4096] Endgame KRN-KRN} b5 45. Nd6 {Black must now prevent Ne8+.} Ke5 46. Ne4 Ne7 47. Rd8 Rc2 48. a3 Ra2 {...Nd5+ is the strong threat.} 49. Nc5 $2 (49. Rh8 $1 $11 {and White is okay.}) 49... Nd5+ $19 ({Stronger than} 49... Rxa3 50. Nd7+ Kd5 51. Nf6+ Kc6 52. Kf2 $11) 50. Kd3 a5 (50... Rxa3 $17 {And now ...Ra1 would win.} 51. Rh8 Kf4 52. Rf8+ Ke5) 51. Rh8 (51. a4 $11) 51... Nf4+ $17 52. Kc3 Nd5+ 53. Kd3 {[#]} Nf4+ {Weighted Error Value: White=0.14 (very precise) /Black=0.09 (flawless)} (53... Rf2 $1 $17 54. Rxh6 Nf4+ 55. Kc3 Rxf3+ 56. Kc2 Rg3) 1/2-1/2

[Event "15th Paleochora Open 2022"]
[Site "Paleochora"]
[Date "2022.07.22"]
[Round "7.4"]
[White "Barp, Alberto"]
[Black "Banikas, Hristos"]
[Result "1/2-1/2"]
[ECO "E92"]
[WhiteElo "2423"]
[BlackElo "2598"]
[Annotator "TA"]
[PlyCount "47"]
[EventDate "2022.07.17"]
[EventType "swiss"]
[EventCountry "GRE"]
[SourceTitle "playchess.com"]
[Source "ChessBase"]
[SourceQuality "1"]
[TimeControl "40/5400+30:900+30"]

{[%evp 21,34,50,49,49,50,0,48,50,55,50,87,80,72,79,76]} 1. d4 g6 2. c4 Bg7 3. Nf3 Nf6 4. Nc3 O-O 5. e4 d6 6. Be2 e5 7. dxe5 dxe5 8. Qxd8 Rxd8 9. Bg5 Nbd7 10. O-O-O Rf8 11. Nd5 c6 12. Ne7+ {E92: King's Indian: Classical: 6 Be2 e5: 7 dxe5, 7 Be3 and Petrosian System without 7...Nbd7.} Kh8 13. Nxc8 (13. Be3 $14) 13... Raxc8 (13... Rfxc8 $11 14. h4 Rc7) 14. Be3 $14 Rc7 15. Nd2 $1 Ra8 16. g4 {[%cal Bg2g4,Bg4g5][%mdl 32]} Bf8 17. g5 Ne8 {[#]  Weighted Error Value: White=0.07 (flawless) /Black=0.16 (very precise)} {Predecessor:} 18. Bg4 $146 Bc5 19. Bxd7 Bxe3 20. fxe3 Rxd7 21. Nf3 Re7 22. Rd3 Nc7 23. Rhd1 Kg7 24. Rd7 {½-½ (53) Van Zyl Rudd,J (2041)-Frolov,A (2389) Budapest 2017} 1/2-1/2

[Event "15th Paleochora Open 2022"]
[Site "Paleochora"]
[Date "2022.07.22"]
[Round "7.5"]
[White "Kourkoulos-Arditis, Stamatis"]
[Black "Spyropoulos, Nikolaos"]
[Result "1-0"]
[ECO "A07"]
[WhiteElo "2535"]
[BlackElo "2446"]
[Annotator "TA"]
[PlyCount "79"]
[EventDate "2022.07.17"]
[EventType "swiss"]
[EventCountry "GRE"]
[SourceTitle "playchess.com"]
[Source "ChessBase"]
[SourceQuality "1"]
[TimeControl "40/5400+30:900+30"]

{[%evp 16,79,8,1,27,18,14,0,2,0,0,1,43,25,24,16,33,15,23,22,48,8,5,3,8,8,21,0,0,0,8,6,7,6,9,8,11,12,120,125,125,125,128,124,123,85,101,128,116,146,136,129,124,77,436,399,1402,1381,29982,29983,29983,29984,29991,29986,29983,12465]} 1. Nf3 Nf6 2. g3 d5 3. Bg2 c6 4. O-O Bg4 5. d3 Nbd7 6. h3 Bh5 7. Nbd2 e6 8. e4 dxe4 9. dxe4 Be7 {A07: Réti Opening: New York and Capablanca Systems.} 10. Qe1 O-O 11. a4 Qc7 {The position is equal.} 12. Nc4 Bxf3 13. Bxf3 {[%cal Bg2f3,Bf3e2,Be2c4][%mdl 32] [#]} Ne5 $146 (13... b5 $5 {[%cal Rb5c4]} 14. Ne3 Bc5 $14) ({Predecessor:} 13... b5 14. Ne3 a6 15. Bd2 Nc5 16. Ba5 Qb8 17. Bb4 bxa4 18. Nc4 Qb5 19. Na3 Qb6 {½-½ (54) Lemberger,W (2114)-Binder,K (1854) ICCF email 2008}) 14. Nxe5 Qxe5 15. c3 Qc7 16. Bf4 $1 e5 17. Be3 Nd7 18. Be2 Bc5 19. Bc4 Bxe3 20. Qxe3 Qb6 21. Qf3 a5 22. Rfd1 Rad8 23. Rd2 Nf6 24. Rad1 h6 25. Kg2 Rxd2 26. Rxd2 Rd8 (26... Rb8 $11) 27. Qe3 $16 Qc7 28. Rxd8+ Qxd8 {[%mdl 4096] Endgame [#] KQB-KQN} 29. Qa7 $1 Qe7 30. Kf3 ({Don't take} 30. Qxa5 $6 Nxe4 31. Bd3 Nd6 $11) 30... Qd7 31. Qb8+ Kh7 32. Qxe5 {Active counter play!} Qxh3 33. Bxf7 {Threatens to win with Be6.} Qh1+ {[#]} 34. Kf4 $1 {Qf5+ is the strong threat.} Qc1+ $2 {[%mdl 8192] Loses the game.} (34... g5+ $16 35. Kf5 Qf3+ 36. Ke6 Kg7) 35. Kf5 $18 h5 $2 (35... Qxb2 36. f4 Qd2 37. Bg6+ (37. Qxa5 $2 Qd7+ 38. Be6 Qe7 $19) 37... Kh8 38. Qb8+ Ng8) 36. Qb8 {Threatening mate with Bg6+.} Qh6 {Against Bg6+} 37. e5 {White mates.} h4 38. gxh4 c5 39. Qd8 g6+ 40. Ke6 {Weighted Error Value: White=0.04 (flawless) /Black=0.46} 1-0

[Event "15th Paleochora Open 2022"]
[Site "Paleochora"]
[Date "2022.07.22"]
[Round "7.6"]
[White "Pap, Misa"]
[Black "Kelires, Andreas"]
[Result "0-1"]
[ECO "C56"]
[WhiteElo "2375"]
[BlackElo "2528"]
[Annotator "TA"]
[PlyCount "80"]
[EventDate "2022.07.17"]
[EventType "swiss"]
[EventCountry "GRE"]
[SourceTitle "playchess.com"]
[Source "ChessBase"]
[SourceQuality "1"]
[TimeControl "40/5400+30:900+30"]

{[%evp 15,80,0,0,0,0,0,0,0,0,0,0,-10,-14,-55,-36,-57,-50,-53,-50,-42,-47,-93,-101,-134,-90,-99,-91,-100,-64,-69,-62,-57,-57,-71,-75,-100,-108,-140,-123,-152,-158,-150,-152,-181,-151,-153,-98,-98,-98,-109,-98,-98,-66,-102,-102,-162,-173,-274,-275,-575,-575,-611,-611,-611,-604,-601,-572]} 1. e4 e5 {[%cal Be7e5,Be5d4][%mdl 32]} 2. Nf3 Nc6 3. Bc4 Nf6 4. d4 exd4 5. e5 d5 6. Bb5 Nd7 7. O-O Be7 8. Bxc6 bxc6 9. Nxd4 {C56: Two Knights: 4 d4 exd4 5 0-0 Nxe4.} Nb8 10. Nc3 O-O 11. Qf3 {The position is equal.} a5 12. Bf4 Ra6 13. Rad1 c5 {[#]} 14. Nb3 $146 ({Predecessor:} 14. Ndb5 d4 15. Nd5 Rg6 16. h3 Na6 17. Bg3 Bg5 18. Na3 Nb4 19. Nc3 f5 20. exf6 Bxf6 {0-1 (67) Robson,R (2676)-Demchenko,A (2654) Chess.com INT 2022}) 14... d4 15. Ne4 Bb7 16. Qe2 Qd5 17. f3 Nd7 18. c4 (18. Nc1 $15 {feels stronger.}) 18... Qe6 $17 19. Rfe1 Qf5 20. Qd2 a4 21. Nc1 Nb6 ({Much less strong is} 21... Nxe5 22. Ng3 Nxf3+ 23. gxf3 $16) 22. b3 axb3 23. axb3 Nd7 $36 {[%cal Bb6d7,Bd7f8,Bf8e6][%mdl 2080] Black fights for an advantage.} 24. Ng3 {[#]} Qg6 25. Qf2 Rfa8 26. Bd2 Bh4 27. Bf4 Nf8 28. Bd2 Ra1 29. Qe2 Ne6 30. Qd3 Qxd3 {Black is more active.} (30... R8a3 $142 {And now ...Qxd3 would win.} 31. Nf5 Bd8) 31. Nxd3 R1a2 32. Re2 Bxg3 33. hxg3 h5 34. Kf2 R2a3 35. Rb1 {[#]} (35. Nc1 $17 {is a better defense.}) 35... Ba6 $1 $19 {[%cal Bb7a6,Ba6c4,Bc4e2,Be2d3][%mdl 32]} 36. Bc1 (36. Nf4 $142) 36... Bxc4 $1 37. Nxc5 (37. bxc4 {might work better.} Rxd3 38. Rc2) 37... Bxe2 {Black is clearly winning.} (37... Nxc5 38. Bxa3 Nxb3 39. Rxb3 Bxb3 40. Bc5 $17) 38. Bxa3 Rxa3 39. Nxe6 Ra2 ({And not} 39... fxe6 40. Kxe2 Ra2+ 41. Kf1 $15 (41. Kd3 Rxg2 42. g4 h4 $17)) 40. Nxd4 Bd3+ {Weighted Error Value: White=0.27 (precise) /Black=0.08 (flawless)} 0-1

[Event "15th Paleochora Open 2022"]
[Site "Paleochora"]
[Date "2022.07.22"]
[Round "7.7"]
[White "Yilmazyerli, Mert"]
[Black "Barbot, Pierre"]
[Result "1/2-1/2"]
[ECO "A07"]
[WhiteElo "2520"]
[BlackElo "2438"]
[Annotator "TA"]
[PlyCount "79"]
[EventDate "2022.07.17"]
[EventType "swiss"]
[EventCountry "GRE"]
[SourceTitle "playchess.com"]
[Source "ChessBase"]
[SourceQuality "1"]
[TimeControl "40/5400+30:900+30"]

{[%evp 9,79,-2,31,32,50,40,42,45,33,32,43,34,31,28,50,47,44,43,48,49,49,47,42,44,45,45,45,42,45,45,60,51,57,55,58,55,56,63,65,60,142,150,153,150,179,147,206,204,200,202,245,239,233,29,226,232,217,79,80,77,90,85,93,8,8,8,8,6,8,7,8,0]} 1. Nf3 Nf6 2. g3 d5 3. Bg2 Nbd7 4. O-O e5 5. c4 c6 6. d4 {A07: Réti Opening: New York and Capablanca Systems.} e4 7. Ne5 Bd6 8. Nxd7 {White is slightly better.} Bxd7 ({Weaker is} 8... Kxd7 9. Nc3 $16) 9. Bg5 O-O 10. Nc3 Be6 11. Qb3 Qb6 12. Qxb6 axb6 13. cxd5 cxd5 {[#]} 14. f3 $146 ({Predecessor:} 14. Nb5 Be7 15. Rfc1 Rac8 16. Bf4 Rc6 17. Bf1 h6 18. a3 g5 19. Bd2 Bd7 20. e3 {½-½ (51) Gutman,L (2455)-Braun,A (2465) Bad Zwesten 2006}) 14... exf3 15. Bxf3 {Black must now prevent Bxf6.} Be7 16. a3 h6 17. Bxf6 Bxf6 18. e3 Rfd8 19. Rac1 Kf8 20. Ne2 Bg5 21. Rc3 Rac8 22. Rfc1 {[%cal Bf1c1,Bc1c3,Bc3c7][%mdl 32]} Rxc3 23. Rxc3 Rd6 24. Kf2 Bd7 (24... Bd8 $1 $14) 25. Rc7 $16 Bc6 {[#]} 26. Rc8+ $1 Ke7 27. Nc3 Re6 (27... f5 $16 {keeps fighting.} 28. Rc7+ Kf8) 28. Nxd5+ $18 Bxd5 29. Bxd5 Bxe3+ {[%mdl 4096] Endgame KRB-KRB} 30. Kf3 Rd6 31. Ke4 ({And not} 31. Bxb7 Bxd4 32. Rc2 f5 $11) (31. Kxe3 $18 Rxd5 32. Rg8) 31... Rd7 $2 32. Kxe3 Rxd5 {[#] KR-KR} 33. Rb8 (33. Rc7+ $1 $18 {and the rest is easy.} Rd7 34. Rc8) 33... Rd7 $16 34. d5 Kd6 35. Kd4 h5 36. Kc4 {White is more active.} (36. a4 $16) 36... b5+ $1 $11 {The position is equal.} 37. Kxb5 {Kb6 is the strong threat.} Kc7 38. Rg8 {Hoping for Kc5.} Rxd5+ 39. Kc4 Rg5 40. Kd4 {Weighted Error Value: White=0.21 (precise) /Black=0.22 (precise)} 1/2-1/2

[Event "15th Paleochora Open 2022"]
[Site "Paleochora"]
[Date "2022.07.22"]
[Round "7.8"]
[White "Leniart, Arkadiusz"]
[Black "Khayrullin, Denis"]
[Result "1/2-1/2"]
[ECO "A84"]
[WhiteElo "2473"]
[BlackElo "2361"]
[Annotator "TA"]
[PlyCount "155"]
[EventDate "2022.07.17"]
[EventType "swiss"]
[EventCountry "GRE"]
[SourceTitle "playchess.com"]
[Source "ChessBase"]
[SourceQuality "1"]
[TimeControl "40/5400+30:900+30"]

{[%evp 11,155,29,33,35,41,16,16,12,17,15,41,36,41,41,47,30,39,30,36,-8,52,60,71,65,70,68,78,52,31,23,31,0,57,0,70,66,76,71,55,45,64,0,0,0,0,0,0,0,0,0,0,0,0,-8,-21,-140,0,0,0,-142,0,0,14,10,15,0,3,0,8,0,0,0,0,0,0,0,0,0,0,0,0,0,0,0,0,0,0,0,0,0,0,0,0,0,0,0,0,0,0,15,68,0,0,0,0,0,0,0,0,0,0,0,0,0,0,0,0,0,0,0,0,0,0,0,0,0,0,0,0,0,0,0,0,0,0,0,0,0,0,0,0,0,0,0,0,0]} 1. d4 d5 2. c4 e6 3. Nf3 c6 4. e3 Nd7 5. Nc3 f5 6. Qc2 Nh6 7. Bd3 {A84: Dutch Defence: 2 c4 Miscellaneous.} Bd6 8. Bd2 O-O 9. h3 Qe7 {[#]} 10. a3 $146 ({Predecessor:} 10. O-O-O dxc4 11. Bxc4 b5 12. Bd3 b4 13. Na4 c5 14. e4 Bb7 15. e5 Bb8 16. Bg5 {1-0 (48) Hambleton,A (2546)-Sambuev,B (2700) Ottawa 2012}) 10... Kh8 11. Ne2 b6 12. cxd5 cxd5 13. Qa4 Nf7 14. Bb4 e5 15. Bb5 exd4 (15... e4 $11 16. Nd2 Nf6) 16. exd4 $14 a6 17. Bd3 Nf6 18. O-O Bd7 19. Qb3 a5 20. Bxd6 Qxd6 21. Nc3 Rae8 (21... g5 $1 $11) 22. Rac1 ({White should try} 22. Bb5 $14) 22... g6 (22... g5 $1 $11) 23. Bb5 Re6 24. Rc2 g5 25. Bxd7 Qxd7 26. Nb5 (26. Re1 $14) 26... g4 $11 27. Rc7 Qe8 28. hxg4 fxg4 29. Rxf7 Qxf7 30. Ng5 {[%csl LRe6,LRf7] Pair of Knights!} Qe7 31. Nxe6 Qxe6 32. Nc7 Qc6 33. Nb5 (33. Qc3 $1 $11 {keeps the balance.} Qxc3 34. bxc3) 33... Qe6 ({Black should play} 33... Ne4 $17 {[%cal Og4g3] Threatens to win with ...g3!} 34. Qd3 Qf6) 34. Nc7 (34. Qd3 $11) 34... Qc6 $17 35. Nb5 Qe6 (35... Ne4 $17 {[%cal Og4g3] aiming for ...g3!} 36. Qd3 Qh6) 36. Qd3 Ne4 37. Nc3 Nxc3 38. Qxc3 $11 {[%mdl 4096] Endgame KQR-KQR} Re8 39. Rc1 Qe4 40. Qc6 Rf8 41. Qd6 {[%cal Rd6f8] [#]} Qf4 42. Qxf4 Rxf4 {KR-KR} 43. Rc6 Rxd4 44. Rxb6 g3 45. fxg3 Rd2 46. Kh2 Kg7 47. g4 d4 {[%cal Bd5d4,Bd4d3,Bd3d2][%mdl 32]} 48. Kg3 d3 49. Kf3 Re2 50. b3 Ra2 51. a4 Rb2 52. Ke3 d2 53. Ke2 Kf7 54. Kd1 Kg7 55. g5 Kf7 $1 56. g4 (56. Ke2 $14) 56... Kg7 {The position is equal.} 57. Ke2 Kf7 58. g6+ hxg6 59. g5 Ke7 60. Rb5 Kd6 61. Rxa5 {[#] Ra6+ is the strong threat.} Rxb3 62. Kxd2 Ke6 63. Kc2 Rg3 64. Rc5 Kd6 65. Rb5 {Black must now prevent Rb6+.} Kc6 {Against Rb6+} 66. Kb2 Kc7 67. Rc5+ Kd6 68. Ra5 {Hoping for Ra6+.} Rg2+ 69. Kc3 Rg3+ 70. Kd4 {Strongly threatening Ra6+.} Rg4+ 71. Ke3 Ke6 72. Ra6+ Kf5 73. Ra5+ Ke6 74. Kf3 Rb4 75. Ra6+ Kf5 76. Ra5+ Ke6 77. Ke3 Rg4 78. Kf3 {Weighted Error Value: White=0.13 (very precise) /Black=0.14 (very precise)} 1/2-1/2

[Event "15th Paleochora Open 2022"]
[Site "Paleochora"]
[Date "2022.07.22"]
[Round "7.9"]
[White "Alexiadis, Hristos"]
[Black "Nevednichy, Vladislav"]
[Result "1/2-1/2"]
[ECO "E11"]
[WhiteElo "2283"]
[BlackElo "2473"]
[Annotator "TA"]
[PlyCount "35"]
[EventDate "2022.07.17"]
[EventType "swiss"]
[EventCountry "GRE"]
[SourceTitle "playchess.com"]
[Source "ChessBase"]
[SourceQuality "1"]
[TimeControl "40/5400+30:900+30"]

{[%evp 13,35,14,5,14,18,0,0,0,0,-6,1,0,0,2,0,0,14,18,20,0,0,0,39,35]} 1. d4 Nf6 2. Nf3 d5 3. c4 e6 4. g3 Bb4+ 5. Bd2 Be7 6. Bg2 O-O 7. O-O Nbd7 8. Qb3 {E11: Bogo-Indian.} a5 9. a4 c6 10. Rc1 {The position is equal.} Ne4 11. Be1 f5 12. Nc3 Bf6 13. e3 {[#]} g5 $146 ({Predecessor:} 13... Kh8 14. Qc2 Qe7 15. Ne2 g5 16. Rab1 Nd6 17. b3 Bg7 18. Bc3 Ne4 19. Bb2 Nb8 {1-0 (80) Goryachkina,A (2564)-Cramling,P (2487) Skolkovo 2019}) 14. Ne2 Nd6 15. cxd5 exd5 16. Qc2 Re8 17. b4 axb4 18. Bxb4 {Weighted Error Value: White=0.03 (flawless) /Black=0.06 (flawless)} 1/2-1/2

[Event "15th Paleochora Open 2022"]
[Site "Paleochora"]
[Date "2022.07.22"]
[Round "7.10"]
[White "Basso, Pier Luigi"]
[Black "Hristodoulou, Panagiotis"]
[Result "1/2-1/2"]
[ECO "D37"]
[WhiteElo "2561"]
[BlackElo "2330"]
[Annotator "TA"]
[PlyCount "43"]
[EventDate "2022.07.17"]
[EventType "swiss"]
[EventCountry "GRE"]
[SourceTitle "playchess.com"]
[Source "ChessBase"]
[SourceQuality "1"]
[TimeControl "40/5400+30:900+30"]

{[%evp 13,43,10,2,15,12,0,16,0,8,0,4,0,0,0,0,0,0,0,0,-12,0,-18,-20,-24,-14,-33,-17,-50,-56,-52,-55,-85]} 1. d4 d5 2. c4 e6 3. Nf3 Nf6 4. Nc3 Be7 5. Bf4 O-O 6. e3 b6 7. cxd5 Nxd5 8. Nxd5 {D37: Queen's Gambit Declined: 5 Bf4.} Qxd5 9. Be2 Ba6 10. O-O {The position is equal.} c5 11. Bxa6 Nxa6 {[%cal Bb8a6,Ba6c5,Bc5a4][%mdl 32]} 12. Qe2 Qb7 13. Rfd1 Rfd8 14. Rac1 Rac8 15. a3 {[#]} cxd4 $146 ({Predecessor:} 15... Bf6 16. h3 cxd4 17. exd4 Nc7 18. Be5 Nd5 19. Qe4 Qd7 20. Qe2 Qa4 21. Nd2 Bxe5 22. dxe5 {0-1 (78) Zirkelbach,M (2214)-Marn,J (2138) Nova Gorica 2018}) 16. Nxd4 Nc5 17. f3 a6 18. e4 b5 19. Be3 h6 20. Rc2 Na4 21. Rxc8 Rxc8 22. Nb3 {Weighted Error Value: White=0.09 (flawless) /Black=0.04 (flawless)} 1/2-1/2

[Event "15th Paleochora Open 2022"]
[Site "Paleochora"]
[Date "2022.07.22"]
[Round "7.11"]
[White "Spyratos, Nikolaos"]
[Black "David, Alberto"]
[Result "0-1"]
[ECO "A47"]
[WhiteElo "2268"]
[BlackElo "2534"]
[Annotator "TA"]
[PlyCount "40"]
[EventDate "2022.07.17"]
[EventType "swiss"]
[EventCountry "GRE"]
[SourceTitle "playchess.com"]
[Source "ChessBase"]
[SourceQuality "1"]
[TimeControl "40/5400+30:900+30"]

{[%evp 9,40,18,14,0,0,0,0,0,3,8,0,0,0,-22,-13,-51,-68,-95,-87,-135,-150,-185,-133,-151,-136,-250,-150,-265,-241,-246,-273,-275,-272]} 1. d4 Nf6 2. Nf3 b6 3. Bg5 {[%cal Bc1g5,Bg5h4,Bh4g3][%mdl 32]} Bb7 4. Nbd2 g6 5. e3 Bg7 6. Be2 {A47: 1 d4 Nf6 2 Nf3 b6: Torre, London and Colle Systems.} d6 7. O-O h6 8. Bh4 {The position is equal.} g5 9. Bg3 Nh5 {[#]} 10. c3 $146 ({Predecessor:} 10. Nxg5 Nxg3 11. fxg3 hxg5 12. Bf3 d5 13. Bh5 Bf6 14. h4 Qd6 15. Qf3 gxh4 16. gxh4 {0-1 (35) Dubois,L (2258)-Dragojlovic,A (2437) Clichy 2000}) 10... Nd7 11. Re1 e6 12. Nc4 {[%cal Og3d6] [#] Threatens to win with Bxd6!} Nxg3 13. hxg3 h5 14. Nfd2 ({Better is} 14. e4) 14... g4 $17 15. f4 {Prevents Qg5.} gxf3 ({Black should try} 15... Qe7 $19 {aiming for ...f5.} 16. e4 h4 17. Bxg4 hxg3) 16. Bxf3 d5 17. Kf2 (17. Na3 $17) 17... Qf6 18. Na3 (18. Ne5 $17) 18... e5 $19 {White must now prevent ...e4.} 19. e4 h4 20. g4 O-O-O {Weighted Error Value: White=0.27 (precise) /Black=0.09 (flawless)} 0-1